[Event "Late-Titled-Tuesday-Blitz-May-28-2024"]
[Site "Chess.com"]
[Date "2024.05.28"]
[Round "2"]
[White "marik_spb"]
[Black "Navyblue1"]
[Result "1-0"]
[WhiteElo "2511"]
[BlackElo "2239"]
[TimeControl "180+1"]
[EndTime "14:16:40 PDT"]
[Termination "marik_spb won by resignation"]

1. d4 {[%clk 0:03:00.9]} 1... Nf6 {[%clk 0:02:43.1]} 2. Nf3 {[%clk 0:02:53.5]}
2... g6 {[%clk 0:02:40.9]} 3. g3 {[%clk 0:02:53.5]} 3... Bg7 {[%clk 0:02:40.5]}
4. Bg2 {[%clk 0:02:54.1]} 4... O-O {[%clk 0:02:38]} 5. O-O {[%clk 0:02:54.5]}
5... d6 {[%clk 0:02:34.9]} 6. c4 {[%clk 0:02:55]} 6... c6 {[%clk 0:02:34.1]} 7.
Nc3 {[%clk 0:02:54.6]} 7... Qb6 {[%clk 0:02:33.8]} 8. e4 {[%clk 0:02:50.6]} 8...
Qa6 {[%clk 0:02:30.9]} 9. Qb3 {[%clk 0:02:46.4]} 9... Bg4 {[%clk 0:02:11.8]} 10.
Be3 {[%clk 0:02:44.1]} 10... Bxf3 {[%clk 0:02:10.4]} 11. Bxf3 {[%clk 0:02:43.4]}
11... Nbd7 {[%clk 0:02:08.7]} 12. Qa4 {[%clk 0:02:38.5]} 12... Qxa4 {[%clk
0:02:05.3]} 13. Nxa4 {[%clk 0:02:39.4]} 13... e5 {[%clk 0:01:56.6]} 14. d5
{[%clk 0:02:36.4]} 14... c5 {[%clk 0:01:53.5]} 15. Rab1 {[%clk 0:02:33.8]} 15...
b6 {[%clk 0:01:49.1]} 16. Nc3 {[%clk 0:02:31.2]} 16... a6 {[%clk 0:01:46.2]} 17.
b4 {[%clk 0:02:27.8]} 17... Rab8 {[%clk 0:01:42]} 18. Bd1 {[%clk 0:02:14.4]}
18... cxb4 {[%clk 0:01:34.2]} 19. Rxb4 {[%clk 0:02:13.7]} 19... Nc5 {[%clk
0:01:33.4]} 20. Bc2 {[%clk 0:02:09.1]} 20... Nfd7 {[%clk 0:01:32.1]} 21. Rfb1
{[%clk 0:02:05.6]} 21... f6 {[%clk 0:01:21.5]} 22. Na4 {[%clk 0:02:02]} 22...
Nxa4 {[%clk 0:01:20.3]} 23. Bxa4 {[%clk 0:02:00.8]} 23... Rb7 {[%clk 0:01:14.3]}
24. Bxd7 {[%clk 0:01:58.9]} 24... Rxd7 {[%clk 0:01:13.8]} 25. Rxb6 {[%clk
0:01:59.8]} 25... a5 {[%clk 0:01:10.9]} 26. Rc6 {[%clk 0:01:58.8]} 26... f5
{[%clk 0:01:09.5]} 27. Rbb6 {[%clk 0:01:53.5]} 27... f4 {[%clk 0:01:06.4]} 28.
Bd2 {[%clk 0:01:53.3]} 28... fxg3 {[%clk 0:01:05.1]} 29. hxg3 {[%clk 0:01:52]}
29... Rf6 {[%clk 0:00:59.8]} 30. c5 {[%clk 0:01:46.7]} 30... Bf8 {[%clk
0:00:54.9]} 31. cxd6 {[%clk 0:01:39.5]} 31... Rfxd6 {[%clk 0:00:52.7]} 32. Rxd6
{[%clk 0:01:38.4]} 32... Rxd6 {[%clk 0:00:52]} 33. Rxd6 {[%clk 0:01:36.5]} 33...
Bxd6 {[%clk 0:00:50.9]} 34. Bxa5 {[%clk 0:01:37.4]} 34... Kf7 {[%clk 0:00:49.7]}
35. Kg2 {[%clk 0:01:37.4]} 35... Ke8 {[%clk 0:00:50.2]} 36. Bd2 {[%clk
0:01:35.2]} 36... Kd7 {[%clk 0:00:50.3]} 37. f4 {[%clk 0:01:35.8]} 37... Kc8
{[%clk 0:00:49.7]} 38. a4 {[%clk 0:01:35.3]} 38... Kb7 {[%clk 0:00:49.9]} 39.
Kf3 {[%clk 0:01:35.7]} 39... Ka6 {[%clk 0:00:50.4]} 40. Kg4 {[%clk 0:01:35.3]}
40... h6 {[%clk 0:00:51]} 41. fxe5 {[%clk 0:01:32.8]} 41... Bxe5 {[%clk
0:00:51.9]} 42. Bxh6 {[%clk 0:01:32.8]} 42... Ka5 {[%clk 0:00:52.6]} 43. Kg5
{[%clk 0:01:30.6]} 43... Kxa4 {[%clk 0:00:53.1]} 44. Kxg6 {[%clk 0:01:30.7]}
44... Kb5 {[%clk 0:00:53.8]} 45. Bf4 {[%clk 0:01:29.2]} 45... Bxf4 {[%clk
0:00:44.5]} 46. gxf4 {[%clk 0:01:29]} 1-0

[Event "Late-Titled-Tuesday-Blitz-May-28-2024"]
[Site "Chess.com"]
[Date "2024.05.28"]
[Round "2"]
[White "OparinGrigoriy"]
[Black "KingCyber19"]
[Result "1-0"]
[WhiteElo "3057"]
[BlackElo "2620"]
[TimeControl "180+1"]
[EndTime "14:16:43 PDT"]
[Termination "OparinGrigoriy won by checkmate"]

1. c4 {[%clk 0:03:00.9]} 1... c5 {[%clk 0:02:59.5]} 2. g3 {[%clk 0:03:00.8]}
2... Nf6 {[%clk 0:02:53.4]} 3. Bg2 {[%clk 0:03:01.4]} 3... d5 {[%clk 0:02:53.6]}
4. cxd5 {[%clk 0:03:01.4]} 4... Nxd5 {[%clk 0:02:53.7]} 5. Nc3 {[%clk
0:03:02.1]} 5... Nc7 {[%clk 0:02:54]} 6. Nf3 {[%clk 0:03:01.7]} 6... Nc6 {[%clk
0:02:53.7]} 7. a3 {[%clk 0:03:02.1]} 7... e5 {[%clk 0:02:53.6]} 8. b4 {[%clk
0:03:02.6]} 8... cxb4 {[%clk 0:02:53.7]} 9. axb4 {[%clk 0:03:03.5]} 9... f6
{[%clk 0:02:35.6]} 10. Ba3 {[%clk 0:02:48]} 10... Bxb4 {[%clk 0:02:05]} 11. Nxe5
{[%clk 0:02:38.5]} 11... fxe5 {[%clk 0:01:43.3]} 12. Bxc6+ {[%clk 0:02:38.7]}
12... bxc6 {[%clk 0:01:44.2]} 13. Bxb4 {[%clk 0:02:39.4]} 13... Nd5 {[%clk
0:01:37.4]} 14. Qa4 {[%clk 0:02:37.9]} 14... Nxb4 {[%clk 0:01:32.3]} 15. Qxb4
{[%clk 0:02:38.8]} 15... Qe7 {[%clk 0:01:32.7]} 16. Qc4 {[%clk 0:02:35.2]} 16...
Qd6 {[%clk 0:01:28]} 17. Ne4 {[%clk 0:02:28.1]} 17... Qd5 {[%clk 0:01:28.2]} 18.
d3 {[%clk 0:02:26.4]} 18... Qxc4 {[%clk 0:01:16.8]} 19. Nd6+ {[%clk 0:02:26.6]}
19... Ke7 {[%clk 0:01:14.2]} 20. Nxc4 {[%clk 0:02:27.5]} 20... Ke6 {[%clk
0:01:11.6]} 21. Ra5 {[%clk 0:02:27.7]} 21... Kf6 {[%clk 0:01:06.9]} 22. Nxe5
{[%clk 0:02:26.7]} 22... Be6 {[%clk 0:01:02.9]} 23. Kd2 {[%clk 0:02:26.9]} 23...
Bd5 {[%clk 0:00:57.5]} 24. e4 {[%clk 0:02:17.6]} 24... Kxe5 {[%clk 0:00:56.9]}
25. f4+ {[%clk 0:02:16.8]} 25... Kd6 {[%clk 0:00:56.6]} 26. exd5 {[%clk
0:02:16.6]} 26... cxd5 {[%clk 0:00:57.5]} 27. Ra6+ {[%clk 0:02:17.2]} 27... Kc7
{[%clk 0:00:36.5]} 28. Rha1 {[%clk 0:02:12.6]} 28... Kb7 {[%clk 0:00:36.2]} 29.
Kc3 {[%clk 0:02:12]} 29... Rhe8 {[%clk 0:00:33.6]} 30. R6a2 {[%clk 0:02:10]}
30... Red8 {[%clk 0:00:19.9]} 31. Kd4 {[%clk 0:02:10.4]} 31... Rd6 {[%clk
0:00:20.5]} 32. Ra5 {[%clk 0:02:08.2]} 32... Rh6 {[%clk 0:00:17.1]} 33. R1a2
{[%clk 0:02:07.2]} 33... Rd6 {[%clk 0:00:13.3]} 34. Rb5+ {[%clk 0:02:07.6]}
34... Kc6 {[%clk 0:00:12.6]} 35. Rb1 {[%clk 0:02:05.2]} 35... a5 {[%clk
0:00:12.4]} 36. Rc2+ {[%clk 0:02:05.4]} 36... Kd7 {[%clk 0:00:12.3]} 37. Rb7+
{[%clk 0:02:06.1]} 37... Ke6 {[%clk 0:00:12.2]} 38. Rxg7 {[%clk 0:02:06.5]}
38... a4 {[%clk 0:00:12.8]} 39. Rxh7 {[%clk 0:01:58.7]} 39... Rdd8 {[%clk
0:00:10.7]} 40. Rc6+ {[%clk 0:01:55.5]} 40... Kf5 {[%clk 0:00:09.5]} 41. h3
{[%clk 0:01:56]} 41... Rh8 {[%clk 0:00:07.2]} 42. Rf7# {[%clk 0:01:56.3]} 1-0

[Event "Late-Titled-Tuesday-Blitz-May-28-2024"]
[Site "Chess.com"]
[Date "2024.05.28"]
[Round "2"]
[White "Romadk"]
[Black "CixPer1968"]
[Result "1-0"]
[WhiteElo "2460"]
[BlackElo "2138"]
[TimeControl "180+1"]
[EndTime "14:16:43 PDT"]
[Termination "Romadk won on time"]

1. d4 {[%clk 0:03:00.9]} 1... d5 {[%clk 0:02:53.3]} 2. Nf3 {[%clk 0:03:00.8]}
2... Nf6 {[%clk 0:02:52.2]} 3. g3 {[%clk 0:03:01.1]} 3... c6 {[%clk 0:02:50.7]}
4. Bg2 {[%clk 0:03:01.1]} 4... Bg4 {[%clk 0:02:50.6]} 5. c4 {[%clk 0:03:01.6]}
5... e6 {[%clk 0:02:47.3]} 6. Nc3 {[%clk 0:02:59.1]} 6... Nbd7 {[%clk
0:02:46.8]} 7. Qb3 {[%clk 0:02:57.8]} 7... Qb6 {[%clk 0:02:46]} 8. c5 {[%clk
0:02:57.4]} 8... Qxb3 {[%clk 0:02:40.8]} 9. axb3 {[%clk 0:02:58.3]} 9... a6
{[%clk 0:02:35]} 10. h3 {[%clk 0:02:57.9]} 10... Bh5 {[%clk 0:02:31.6]} 11. g4
{[%clk 0:02:58.2]} 11... Bg6 {[%clk 0:02:31.5]} 12. Bf4 {[%clk 0:02:58.9]} 12...
Rc8 {[%clk 0:02:29.2]} 13. b4 {[%clk 0:02:59.1]} 13... Ne4 {[%clk 0:02:28.4]}
14. Nd2 {[%clk 0:02:58.1]} 14... Nxd2 {[%clk 0:02:07.6]} 15. Kxd2 {[%clk
0:02:56]} 15... Be7 {[%clk 0:02:06.9]} 16. e4 {[%clk 0:02:52.3]} 16... O-O
{[%clk 0:02:04.9]} 17. exd5 {[%clk 0:02:39.4]} 17... exd5 {[%clk 0:02:00.6]} 18.
h4 {[%clk 0:02:25]} 18... h5 {[%clk 0:01:58.5]} 19. g5 {[%clk 0:02:23.8]} 19...
Rfe8 {[%clk 0:01:51.5]} 20. Bh3 {[%clk 0:02:14.9]} 20... Red8 {[%clk 0:01:31.9]}
21. b5 {[%clk 0:02:09.5]} 21... cxb5 {[%clk 0:00:10.4]} 22. Nxd5 {[%clk
0:02:09]} 22... Bf8 {[%clk 0:00:06.3]} 23. b4 {[%clk 0:01:17.8]} 1-0

[Event "Late-Titled-Tuesday-Blitz-May-28-2024"]
[Site "Chess.com"]
[Date "2024.05.28"]
[Round "2"]
[White "djano"]
[Black "Jospem"]
[Result "0-1"]
[WhiteElo "2598"]
[BlackElo "3017"]
[TimeControl "180+1"]
[EndTime "14:16:58 PDT"]
[Termination "Jospem won on time"]

1. e4 {[%clk 0:03:00.9]} 1... c5 {[%clk 0:02:59.7]} 2. Nc3 {[%clk 0:03:00.6]}
2... d6 {[%clk 0:02:59.6]} 3. f4 {[%clk 0:03:00.8]} 3... e6 {[%clk 0:02:59.1]}
4. Nf3 {[%clk 0:03:00.3]} 4... a6 {[%clk 0:02:59.9]} 5. g3 {[%clk 0:02:55]} 5...
Nc6 {[%clk 0:02:59.2]} 6. Bg2 {[%clk 0:02:55.2]} 6... Nf6 {[%clk 0:02:59.5]} 7.
O-O {[%clk 0:02:55.1]} 7... Be7 {[%clk 0:03:00.1]} 8. d3 {[%clk 0:02:53.9]} 8...
O-O {[%clk 0:03:00.5]} 9. h3 {[%clk 0:02:54.1]} 9... Nd7 {[%clk 0:02:54.5]} 10.
g4 {[%clk 0:02:46.6]} 10... b5 {[%clk 0:02:54.7]} 11. Ne2 {[%clk 0:02:44.5]}
11... Bb7 {[%clk 0:02:53.3]} 12. Ng3 {[%clk 0:02:43.8]} 12... Rc8 {[%clk
0:02:53.6]} 13. g5 {[%clk 0:02:37.1]} 13... Nd4 {[%clk 0:02:50.4]} 14. h4 {[%clk
0:02:34.8]} 14... Nxf3+ {[%clk 0:02:36.1]} 15. Qxf3 {[%clk 0:02:35.7]} 15... f5
{[%clk 0:02:25.7]} 16. Qe2 {[%clk 0:02:30.8]} 16... Kh8 {[%clk 0:02:13.2]} 17.
Bd2 {[%clk 0:02:20.4]} 17... d5 {[%clk 0:01:59]} 18. exf5 {[%clk 0:02:13]} 18...
exf5 {[%clk 0:01:59.9]} 19. Rae1 {[%clk 0:02:12.1]} 19... Bd6 {[%clk 0:02:00.5]}
20. Qe6 {[%clk 0:01:53.5]} 20... Rc6 {[%clk 0:02:00.5]} 21. Bxd5 {[%clk
0:01:45.8]} 21... Rb6 {[%clk 0:02:01]} 22. Ba5 {[%clk 0:01:19.1]} 22... Bc8
{[%clk 0:01:55.7]} 23. Bxb6 {[%clk 0:01:11.5]} 23... Nxb6 {[%clk 0:01:56.6]} 24.
Qe2 {[%clk 0:00:49.3]} 24... Nxd5 {[%clk 0:01:55.6]} 25. Qd2 {[%clk 0:00:47.5]}
25... Qc7 {[%clk 0:01:55.6]} 26. Nh5 {[%clk 0:00:46.9]} 26... Qf7 {[%clk
0:01:49.6]} 27. Ng3 {[%clk 0:00:43.3]} 27... Bb7 {[%clk 0:01:49.8]} 28. Re2
{[%clk 0:00:39.5]} 28... Qc7 {[%clk 0:01:39.3]} 29. Nh5 {[%clk 0:00:25.6]} 29...
Ne7 {[%clk 0:01:39.6]} 30. Rfe1 {[%clk 0:00:22.8]} 30... Qc6 {[%clk 0:01:36.1]}
31. Kh2 {[%clk 0:00:16.2]} 31... Ng6 {[%clk 0:01:34.4]} 32. Qc3 {[%clk
0:00:14.3]} 32... Bxf4+ {[%clk 0:01:25.9]} 33. Kh3 {[%clk 0:00:09.4]} 33... Qf3+
{[%clk 0:01:25.4]} 0-1

[Event "Late-Titled-Tuesday-Blitz-May-28-2024"]
[Site "Chess.com"]
[Date "2024.05.28"]
[Round "2"]
[White "Pawngobblerx2000"]
[Black "NikaVolkov"]
[Result "0-1"]
[WhiteElo "2487"]
[BlackElo "2758"]
[TimeControl "180+1"]
[EndTime "14:17:01 PDT"]
[Termination "NikaVolkov won by resignation"]

1. c4 {[%clk 0:03:00.9]} 1... e6 {[%clk 0:03:00.2]} 2. g3 {[%clk 0:03:00.7]}
2... d5 {[%clk 0:03:01.1]} 3. Nf3 {[%clk 0:03:01.1]} 3... Nf6 {[%clk 0:03:01.6]}
4. Bg2 {[%clk 0:03:01.2]} 4... Be7 {[%clk 0:03:02.3]} 5. O-O {[%clk 0:03:01.9]}
5... O-O {[%clk 0:03:03]} 6. d4 {[%clk 0:03:02.3]} 6... dxc4 {[%clk 0:03:03.4]}
7. Qc2 {[%clk 0:03:02.9]} 7... a6 {[%clk 0:03:03.7]} 8. Rd1 {[%clk 0:03:03.3]}
8... Nbd7 {[%clk 0:03:03.1]} 9. Qxc4 {[%clk 0:03:00.4]} 9... c5 {[%clk
0:03:03.4]} 10. Bg5 {[%clk 0:02:52]} 10... b5 {[%clk 0:02:16.4]} 11. Qc2 {[%clk
0:02:49.1]} 11... Bb7 {[%clk 0:02:16.9]} 12. dxc5 {[%clk 0:02:39.7]} 12... Qc7
{[%clk 0:02:04]} 13. b4 {[%clk 0:02:27.7]} 13... a5 {[%clk 0:01:58.7]} 14. Bf4
{[%clk 0:02:10.6]} 14... e5 {[%clk 0:01:56.8]} 15. Nxe5 {[%clk 0:02:08.8]} 15...
Nxe5 {[%clk 0:01:36.5]} 16. Bxb7 {[%clk 0:02:08.1]} 16... Qxb7 {[%clk
0:01:34.1]} 17. Bxe5 {[%clk 0:02:08.3]} 17... axb4 {[%clk 0:01:34.7]} 18. c6
{[%clk 0:02:06.9]} 18... Qb6 {[%clk 0:01:31]} 19. Nd2 {[%clk 0:01:58.8]} 19...
Ng4 {[%clk 0:01:25.8]} 20. Qf5 {[%clk 0:01:50.1]} 20... Nxf2 {[%clk 0:01:16.8]}
21. Nc4 {[%clk 0:00:43.4]} 21... Nh3+ {[%clk 0:00:41.6]} 22. Kg2 {[%clk
0:00:41.4]} 22... Qxc6+ {[%clk 0:00:40.8]} 23. Kxh3 {[%clk 0:00:40.5]} 23...
bxc4 {[%clk 0:00:40.8]} 24. Qg4 {[%clk 0:00:38.1]} 24... g6 {[%clk 0:00:37.7]}
25. Qf4 {[%clk 0:00:36.8]} 25... Ra5 {[%clk 0:00:36.2]} 26. Rac1 {[%clk
0:00:32.8]} 26... Qe6+ {[%clk 0:00:35.7]} 0-1

[Event "Late-Titled-Tuesday-Blitz-May-28-2024"]
[Site "Chess.com"]
[Date "2024.05.28"]
[Round "2"]
[White "NathanHoover"]
[Black "Veleamater"]
[Result "0-1"]
[WhiteElo "1812"]
[BlackElo "2438"]
[TimeControl "180+1"]
[EndTime "14:17:02 PDT"]
[Termination "Veleamater won on time"]

1. e4 {[%clk 0:02:57.6]} 1... d6 {[%clk 0:03:00.9]} 2. d4 {[%clk 0:02:55.9]}
2... g6 {[%clk 0:03:01.5]} 3. Nc3 {[%clk 0:02:51.2]} 3... Bg7 {[%clk 0:03:01.5]}
4. f4 {[%clk 0:02:48.8]} 4... Nf6 {[%clk 0:03:00.1]} 5. Nf3 {[%clk 0:02:48.5]}
5... O-O {[%clk 0:03:00]} 6. Bd3 {[%clk 0:02:48.4]} 6... Nc6 {[%clk 0:03:00.5]}
7. O-O {[%clk 0:02:37.1]} 7... e5 {[%clk 0:03:00.5]} 8. fxe5 {[%clk 0:02:35.5]}
8... dxe5 {[%clk 0:03:00.6]} 9. d5 {[%clk 0:02:35.6]} 9... Ne7 {[%clk
0:03:00.8]} 10. Be3 {[%clk 0:02:31.9]} 10... h6 {[%clk 0:02:58.8]} 11. Kh1
{[%clk 0:02:31.5]} 11... Ne8 {[%clk 0:02:58.6]} 12. Qe2 {[%clk 0:02:30.6]} 12...
Nd6 {[%clk 0:02:57.7]} 13. Rad1 {[%clk 0:02:25]} 13... f5 {[%clk 0:02:57.4]} 14.
exf5 {[%clk 0:02:18.8]} 14... gxf5 {[%clk 0:02:57.3]} 15. Bb5 {[%clk 0:02:02.5]}
15... Ng6 {[%clk 0:02:53.9]} 16. Ba4 {[%clk 0:01:59.8]} 16... f4 {[%clk
0:02:32.8]} 17. Bc5 {[%clk 0:01:49.1]} 17... Bg4 {[%clk 0:02:32.4]} 18. Ne4
{[%clk 0:01:45.5]} 18... b6 {[%clk 0:02:15.6]} 19. Ba3 {[%clk 0:01:30.8]} 19...
Rf5 {[%clk 0:02:14.6]} 20. Bc6 {[%clk 0:01:28.7]} 20... Rb8 {[%clk 0:02:13.5]}
21. c4 {[%clk 0:01:26.3]} 21... Rh5 {[%clk 0:02:12.6]} 22. c5 {[%clk 0:01:21.4]}
22... bxc5 {[%clk 0:02:08.1]} 23. Bxc5 {[%clk 0:01:14.9]} 23... Nxe4 {[%clk
0:01:53.5]} 24. Qxe4 {[%clk 0:01:11.9]} 24... Bf5 {[%clk 0:01:53.2]} 25. Qe2
{[%clk 0:01:07.4]} 25... e4 {[%clk 0:01:42.8]} 26. Nd4 {[%clk 0:01:06.3]} 26...
Qh4 {[%clk 0:01:42.2]} 27. h3 {[%clk 0:00:03.5]} 27... f3 {[%clk 0:01:34.8]} 28.
Nxf3 {[%clk 0:00:02.2]} 28... exf3 {[%clk 0:01:33.4]} 29. Qxf3 {[%clk
0:00:02.3]} 29... Rxb2 {[%clk 0:01:28.2]} 30. Bxa7 {[%clk 0:00:01]} 30... Bxh3
{[%clk 0:01:21.6]} 31. Bf2 {[%clk 0:00:01]} 31... Rxf2 {[%clk 0:01:15.4]} 0-1

[Event "Late-Titled-Tuesday-Blitz-May-28-2024"]
[Site "Chess.com"]
[Date "2024.05.28"]
[Round "2"]
[White "KejJaj"]
[Black "Shankland"]
[Result "0-1"]
[WhiteElo "2134"]
[BlackElo "2995"]
[TimeControl "180+1"]
[EndTime "14:17:04 PDT"]
[Termination "Shankland won by resignation"]

1. d4 {[%clk 0:03:00.9]} 1... Nf6 {[%clk 0:02:58.4]} 2. Bf4 {[%clk 0:03:01.1]}
2... b6 {[%clk 0:02:58]} 3. Nf3 {[%clk 0:02:57.3]} 3... Bb7 {[%clk 0:02:58.2]}
4. e3 {[%clk 0:02:57.3]} 4... g6 {[%clk 0:02:58.3]} 5. Be2 {[%clk 0:02:53.4]}
5... Bg7 {[%clk 0:02:58.4]} 6. c4 {[%clk 0:02:51.6]} 6... O-O {[%clk 0:02:56.2]}
7. Nc3 {[%clk 0:02:52]} 7... Ne4 {[%clk 0:02:54]} 8. Qc2 {[%clk 0:02:41.3]} 8...
Nxc3 {[%clk 0:02:52.6]} 9. Qxc3 {[%clk 0:02:42.2]} 9... c5 {[%clk 0:02:52.9]}
10. O-O {[%clk 0:02:35.7]} 10... Nc6 {[%clk 0:02:48.4]} 11. Rfd1 {[%clk
0:02:30]} 11... Rc8 {[%clk 0:02:44.8]} 12. Qd2 {[%clk 0:02:19.6]} 12... cxd4
{[%clk 0:02:44.7]} 13. exd4 {[%clk 0:02:15.9]} 13... d5 {[%clk 0:02:44.8]} 14.
b3 {[%clk 0:02:06.1]} 14... dxc4 {[%clk 0:02:37.3]} 15. bxc4 {[%clk 0:02:07]}
15... Na5 {[%clk 0:02:37.2]} 16. Rac1 {[%clk 0:02:05.3]} 16... Bxf3 {[%clk
0:02:36.5]} 17. Bxf3 {[%clk 0:02:03.1]} 17... Nxc4 {[%clk 0:02:34.8]} 18. Qe2
{[%clk 0:01:37.8]} 18... b5 {[%clk 0:02:31.8]} 19. a4 {[%clk 0:01:35.5]} 19...
a6 {[%clk 0:02:30.8]} 20. axb5 {[%clk 0:01:35.9]} 20... axb5 {[%clk 0:02:31.7]}
21. Bb7 {[%clk 0:01:31.8]} 21... Qd7 {[%clk 0:01:55.8]} 22. Bxc8 {[%clk
0:01:30.5]} 22... Rxc8 {[%clk 0:01:56.7]} 23. Be3 {[%clk 0:01:25.7]} 23... Qd5
{[%clk 0:01:55.5]} 24. Rb1 {[%clk 0:01:20.6]} 24... e6 {[%clk 0:01:53.4]} 25. h3
{[%clk 0:01:13.7]} 25... h5 {[%clk 0:01:52.7]} 26. Qe1 {[%clk 0:01:01]} 26...
Bf8 {[%clk 0:01:50.1]} 27. Rd3 {[%clk 0:00:53.1]} 27... b4 {[%clk 0:01:39.7]}
28. Rdb3 {[%clk 0:00:52.1]} 28... Na3 {[%clk 0:01:31]} 29. R1b2 {[%clk
0:00:49.6]} 29... Nc2 {[%clk 0:01:30.5]} 30. Qd2 {[%clk 0:00:45.1]} 30... Nxe3
{[%clk 0:01:27.7]} 31. Qxe3 {[%clk 0:00:41.7]} 31... Rc4 {[%clk 0:01:27.2]} 32.
Rxb4 {[%clk 0:00:38.5]} 32... Bxb4 {[%clk 0:01:26.1]} 33. Qg3 {[%clk 0:00:21.4]}
33... Rc1+ {[%clk 0:01:22.9]} 34. Kh2 {[%clk 0:00:18.2]} 34... Bd6 {[%clk
0:01:23.4]} 35. f4 {[%clk 0:00:18.9]} 35... Qxd4 {[%clk 0:01:23.8]} 36. Rf2
{[%clk 0:00:17.6]} 36... e5 {[%clk 0:01:16.7]} 37. Qg5 {[%clk 0:00:16.3]} 37...
Qxf2 {[%clk 0:01:15.8]} 38. Qd8+ {[%clk 0:00:15.8]} 38... Bf8 {[%clk 0:01:15.4]}
0-1

[Event "Late-Titled-Tuesday-Blitz-May-28-2024"]
[Site "Chess.com"]
[Date "2024.05.28"]
[Round "2"]
[White "nindjaxx8"]
[Black "Quattroporte300"]
[Result "1-0"]
[WhiteElo "2634"]
[BlackElo "2395"]
[TimeControl "180+1"]
[EndTime "14:17:04 PDT"]
[Termination "nindjaxx8 won on time"]

1. d4 {[%clk 0:03:00.9]} 1... Nf6 {[%clk 0:02:57.2]} 2. c4 {[%clk 0:03:00.6]}
2... g6 {[%clk 0:02:57.2]} 3. Nc3 {[%clk 0:03:00.9]} 3... Bg7 {[%clk 0:02:57.6]}
4. e4 {[%clk 0:03:01.2]} 4... O-O {[%clk 0:02:58.1]} 5. Be2 {[%clk 0:03:01.3]}
5... d6 {[%clk 0:02:57.7]} 6. Be3 {[%clk 0:03:01.9]} 6... e5 {[%clk 0:02:53.7]}
7. d5 {[%clk 0:03:01.9]} 7... Nbd7 {[%clk 0:02:50.7]} 8. g4 {[%clk 0:02:57.7]}
8... Nc5 {[%clk 0:02:45]} 9. f3 {[%clk 0:02:56.1]} 9... a5 {[%clk 0:02:43.6]}
10. h4 {[%clk 0:02:55.8]} 10... h5 {[%clk 0:02:36.4]} 11. g5 {[%clk 0:02:55.3]}
11... Ne8 {[%clk 0:02:23.7]} 12. Qd2 {[%clk 0:02:53]} 12... Bd7 {[%clk
0:02:15.1]} 13. O-O-O {[%clk 0:02:50.2]} 13... a4 {[%clk 0:02:09.6]} 14. Kb1
{[%clk 0:02:45.6]} 14... Qc8 {[%clk 0:01:42.1]} 15. Bf1 {[%clk 0:02:27.5]} 15...
Kh7 {[%clk 0:01:14]} 16. Nh3 {[%clk 0:02:25]} 16... Rb8 {[%clk 0:00:53.7]} 17.
Nf2 {[%clk 0:02:23.4]} 17... b6 {[%clk 0:00:48.5]} 18. Nd3 {[%clk 0:02:19.3]}
18... Nxd3 {[%clk 0:00:38.3]} 19. Bxd3 {[%clk 0:02:20.2]} 19... f5 {[%clk
0:00:35.3]} 20. gxf6 {[%clk 0:02:19.7]} 20... Nxf6 {[%clk 0:00:29.2]} 21. Rdg1
{[%clk 0:02:18.2]} 21... Qe8 {[%clk 0:00:29.5]} 22. Rg3 {[%clk 0:02:17.7]} 22...
Rg8 {[%clk 0:00:24.7]} 23. Rhg1 {[%clk 0:02:17.7]} 23... Bf8 {[%clk 0:00:24.2]}
24. Bg5 {[%clk 0:02:05]} 24... Qf7 {[%clk 0:00:24.3]} 25. Ne2 {[%clk 0:02:02.7]}
25... Be7 {[%clk 0:00:24.3]} 26. f4 {[%clk 0:01:57.2]} 26... exf4 {[%clk
0:00:24]} 27. Nxf4 {[%clk 0:01:57.5]} 27... Bg4 {[%clk 0:00:20.8]} 28. Bxf6
{[%clk 0:01:33.2]} 28... Bxf6 {[%clk 0:00:20.5]} 29. Rxg4 {[%clk 0:01:33]} 29...
hxg4 {[%clk 0:00:20.2]} 30. Rxg4 {[%clk 0:01:33.9]} 30... Be5 {[%clk 0:00:16.6]}
31. Ne6 {[%clk 0:01:33.3]} 31... Bf6 {[%clk 0:00:10]} 32. Rf4 {[%clk 0:01:30.4]}
32... Qe7 {[%clk 0:00:06.2]} 33. h5 {[%clk 0:01:27.6]} 33... g5 {[%clk
0:00:06.1]} 34. Rxf6 {[%clk 0:01:25.8]} 34... g4 {[%clk 0:00:03.5]} 35. e5+
{[%clk 0:01:25.8]} 35... Kh8 {[%clk 0:00:02.2]} 36. Qh6+ {[%clk 0:01:25.7]} 1-0

[Event "Late-Titled-Tuesday-Blitz-May-28-2024"]
[Site "Chess.com"]
[Date "2024.05.28"]
[Round "2"]
[White "GothamChess"]
[Black "zsizsi99"]
[Result "1-0"]
[WhiteElo "2807"]
[BlackElo "2543"]
[TimeControl "180+1"]
[EndTime "14:17:12 PDT"]
[Termination "GothamChess won by resignation"]

1. e4 {[%clk 0:03:00.9]} 1... c5 {[%clk 0:02:59.7]} 2. a3 {[%clk 0:02:50.7]}
2... Nf6 {[%clk 0:02:55.7]} 3. e5 {[%clk 0:02:50.4]} 3... Nd5 {[%clk 0:02:55.9]}
4. Nf3 {[%clk 0:02:51.1]} 4... g6 {[%clk 0:02:47.8]} 5. Bc4 {[%clk 0:02:49.1]}
5... Nc7 {[%clk 0:02:39.6]} 6. O-O {[%clk 0:02:43.8]} 6... Bg7 {[%clk
0:02:39.4]} 7. Re1 {[%clk 0:02:44.5]} 7... O-O {[%clk 0:02:39.4]} 8. Nc3 {[%clk
0:02:43.2]} 8... Nc6 {[%clk 0:02:39]} 9. d3 {[%clk 0:02:41]} 9... Rb8 {[%clk
0:02:31]} 10. Bf4 {[%clk 0:02:37.6]} 10... b5 {[%clk 0:02:30.4]} 11. Ba2 {[%clk
0:02:36.6]} 11... Ne6 {[%clk 0:02:24.1]} 12. Bg3 {[%clk 0:02:27.3]} 12... Bb7
{[%clk 0:01:59.1]} 13. Nxb5 {[%clk 0:02:24.3]} 13... Qb6 {[%clk 0:01:58.9]} 14.
Bc4 {[%clk 0:01:58.6]} 14... a6 {[%clk 0:01:58.9]} 15. Nc3 {[%clk 0:01:58.3]}
15... Ncd4 {[%clk 0:01:40.6]} 16. Nxd4 {[%clk 0:01:54.3]} 16... cxd4 {[%clk
0:01:38.2]} 17. Nd5 {[%clk 0:01:47.5]} 17... Bxd5 {[%clk 0:01:32.6]} 18. Bxd5
{[%clk 0:01:48.4]} 18... Qxb2 {[%clk 0:01:32.9]} 19. Bc4 {[%clk 0:01:43.9]}
19... a5 {[%clk 0:01:28.5]} 20. h4 {[%clk 0:01:38]} 20... Nc5 {[%clk 0:00:57]}
21. e6 {[%clk 0:01:35]} 21... Nxe6 {[%clk 0:00:55.3]} 22. Bxb8 {[%clk
0:01:34.3]} 22... Qxb8 {[%clk 0:00:55]} 23. Rb1 {[%clk 0:01:31.4]} 23... Qd6
{[%clk 0:00:51.4]} 24. a4 {[%clk 0:01:29.7]} 24... Nf4 {[%clk 0:00:45.9]} 25.
Qf3 {[%clk 0:01:28.3]} 25... e5 {[%clk 0:00:44.8]} 26. Rb5 {[%clk 0:01:21.4]}
26... Qa3 {[%clk 0:00:38.8]} 27. g3 {[%clk 0:01:18.2]} 27... Ne6 {[%clk
0:00:35.1]} 28. Bb3 {[%clk 0:01:13.6]} 28... Nc7 {[%clk 0:00:29]} 29. Rb7 {[%clk
0:01:11.1]} 29... Qc5 {[%clk 0:00:27.4]} 30. h5 {[%clk 0:01:07]} 30... Qd6
{[%clk 0:00:17.6]} 31. hxg6 {[%clk 0:01:05.6]} 31... hxg6 {[%clk 0:00:17.7]} 32.
Kg2 {[%clk 0:01:05.7]} 32... Bf6 {[%clk 0:00:18.1]} 33. Rxc7 {[%clk 0:01:04.6]}
33... Qxc7 {[%clk 0:00:12.8]} 34. Qxf6 {[%clk 0:01:04.2]} 1-0